[Event "Titled Tuesday Blitz September 28 2021"]
[White "Aldokhin, Ivan"]
[Black "Sadovsky, Artem"]
[WhiteFideId "24115720"]
[BlackFideId "4155840"]
[WhiteElo "2265"]
[BlackElo "2414"]
[Result "1-0"]
[Round "06"]
[TimeControl "180+1"]
[Date "2021.09.28"]
[WhiteClock "0:00:03"]
[BlackClock "0:00:09"]

1. e4 {[%clk 0:03:00]}  g6 {[%clk 0:03:00]} 2. d4 {[%clk 0:03:00]}  Bg7 {[%clk 0:03:00]} 3. Nc3 {[%clk 0:03:01]}  c6 {[%clk 0:03:01]} 4. Nf3 {[%clk 0:03:01]}  d5 {[%clk 0:03:01]} 5. h3 {[%clk 0:03:01]}  dxe4 {[%clk 0:03:02]} 6. Nxe4 {[%clk 0:03:02]}  Nd7 {[%clk 0:03:02]} 7. Qe2 {[%clk 0:02:59]}  Ndf6 {[%clk 0:03:02]} 8. Nc5 {[%clk 0:02:46]}  e6 {[%clk 0:02:51]} 9. Bg5 {[%clk 0:02:37]}  Ne7 {[%clk 0:02:52]} 10. O-O-O {[%clk 0:02:36]}  a5 {[%clk 0:02:42]} 11. Ne5 {[%clk 0:02:32]}  b6 {[%clk 0:02:37]} 12. Bxf6 {[%clk 0:01:45]}  Bxf6 {[%clk 0:02:36]} 13. Qf3 {[%clk 0:01:39]}  Bg5+ {[%clk 0:01:38]} 14. Kb1 {[%clk 0:01:37]}  O-O {[%clk 0:01:38]} 15. h4 {[%clk 0:01:29]}  Bh6 {[%clk 0:01:26]} 16. Ne4 {[%clk 0:01:16]}  f5 {[%clk 0:01:17]} 17. Nc3 {[%clk 0:01:05]}  b5 {[%clk 0:01:07]} 18. Bxb5 {[%clk 0:01:01]}  Rb8 {[%clk 0:00:56]} 19. Nxc6 {[%clk 0:01:01]}  Nxc6 {[%clk 0:00:55]} 20. Qxc6 {[%clk 0:01:01]}  Rb6 {[%clk 0:00:53]} 21. Qc5 {[%clk 0:00:59]}  Rf7 {[%clk 0:00:46]} 22. d5 {[%clk 0:00:58]}  Bf8 {[%clk 0:00:36]} 23. dxe6 {[%clk 0:00:36]}  Qxd1+ {[%clk 0:00:37]} 24. Rxd1 {[%clk 0:00:35]}  Bxc5 {[%clk 0:00:38]} 25. exf7+ {[%clk 0:00:30]}  Kxf7 {[%clk 0:00:39]} 26. Bc4+ {[%clk 0:00:30]}  Kg7 {[%clk 0:00:39]} 27. Rd8 {[%clk 0:00:27]}  Be6 {[%clk 0:00:19]} 28. Nd5 {[%clk 0:00:10]}  Bxd5 {[%clk 0:00:18]} 29. Bxd5 {[%clk 0:00:11]}  Bxf2 {[%clk 0:00:19]} 30. Rd7+ {[%clk 0:00:11]}  Kf6 {[%clk 0:00:18]} 31. Rxh7 {[%clk 0:00:10]}  Bd4 {[%clk 0:00:18]} 32. b3 {[%clk 0:00:10]}  Bc3 {[%clk 0:00:18]} 33. Rd7 {[%clk 0:00:07]}  Ke5 {[%clk 0:00:17]} 34. Bf3 {[%clk 0:00:07]}  Kf4 {[%clk 0:00:14]} 35. Rd3 {[%clk 0:00:07]}  Be5 {[%clk 0:00:13]} 36. c4 {[%clk 0:00:07]}  Rb8 {[%clk 0:00:11]} 37. c5 {[%clk 0:00:07]}  Kg3 {[%clk 0:00:09]} 38. Rd5 {[%clk 0:00:05]}  Bf4 {[%clk 0:00:09]} 39. h5 {[%clk 0:00:05]}  gxh5 {[%clk 0:00:06]} 40. Rxf5 {[%clk 0:00:05]}  h4 {[%clk 0:00:07]} 41. Bd5 {[%clk 0:00:04]}  Rc8 {[%clk 0:00:07]} 42. c6 {[%clk 0:00:04]}  Rc7 {[%clk 0:00:06]} 43. Kc2 {[%clk 0:00:04]}  Kg4 {[%clk 0:00:05]} 44. Rf8 {[%clk 0:00:04]}  Bd6 {[%clk 0:00:05]} 45. Bf3+ {[%clk 0:00:04]}  Kg3 {[%clk 0:00:05]} 46. Rg8+ {[%clk 0:00:05]}  Kf2 {[%clk 0:00:05]} 47. Bd5 {[%clk 0:00:05]}  Ke3 {[%clk 0:00:04]} 48. Rg6 {[%clk 0:00:05]}  Be5 {[%clk 0:00:04]} 49. a3 {[%clk 0:00:05]}  Kd4 {[%clk 0:00:04]} 50. Bf3 {[%clk 0:00:05]}  Kc5 {[%clk 0:00:05]} 51. Rg5 {[%clk 0:00:04]}  Kd4 {[%clk 0:00:05]} 52. Rg4+ {[%clk 0:00:04]}  Kc5 {[%clk 0:00:05]} 53. Rc4+ {[%clk 0:00:04]}  Kb5 {[%clk 0:00:06]} 54. Kd3 {[%clk 0:00:04]}  Bd6 {[%clk 0:00:06]} 55. Ke4 {[%clk 0:00:04]}  Bxa3 {[%clk 0:00:06]} 56. Kd5 {[%clk 0:00:04]}  Bb4 {[%clk 0:00:03]} 57. Be2 {[%clk 0:00:04]}  Kb6 {[%clk 0:00:03]} 58. Bf3 {[%clk 0:00:05]}  Re7 {[%clk 0:00:03]} 59. Rxh4 {[%clk 0:00:04]}  Rc7 {[%clk 0:00:02]} 60. Ke6 {[%clk 0:00:04]}  Re7+ {[%clk 0:00:02]} 61. Kd5 {[%clk 0:00:04]}  Rc7 {[%clk 0:00:03]} 62. Re4 {[%clk 0:00:04]}  Rxc6 {[%clk 0:00:03]} 63. Rc4 {[%clk 0:00:03]}  Rg6 {[%clk 0:00:02]} 64. Be4 {[%clk 0:00:03]}  Rg5+ {[%clk 0:00:03]} 65. Ke6 {[%clk 0:00:03]}  Rg4 {[%clk 0:00:02]} 66. Kd5 {[%clk 0:00:01]}  Rg5+ {[%clk 0:00:03]} 67. Ke6 {[%clk 0:00:02]}  Be1 {[%clk 0:00:03]} 68. Rc6+ {[%clk 0:00:02]}  Kb5 {[%clk 0:00:03]} 69. Kd7 {[%clk 0:00:03]}  Bg3 {[%clk 0:00:03]} 70. Bf3 {[%clk 0:00:03]}  Rg7+ {[%clk 0:00:02]} 71. Ke8 {[%clk 0:00:03]}  Ra7 {[%clk 0:00:02]} 72. Rc4 {[%clk 0:00:02]}  Bf4 {[%clk 0:00:02]} 73. Be2 {[%clk 0:00:03]}  Be3 {[%clk 0:00:02]} 74. Re4+ {[%clk 0:00:03]}  Kc5 {[%clk 0:00:03]} 75. Rxe3 {[%clk 0:00:03]}  Ra8+ {[%clk 0:00:04]} 76. Ke7 {[%clk 0:00:03]}  Kd4 {[%clk 0:00:05]} 77. Rd3+ {[%clk 0:00:03]}  Ke4 {[%clk 0:00:05]} 78. Rd7 {[%clk 0:00:02]}  Ke3 {[%clk 0:00:05]} 79. Bc4 {[%clk 0:00:03]}  a4 {[%clk 0:00:06]} 80. bxa4 {[%clk 0:00:03]}  Rxa4 {[%clk 0:00:07]} 81. Bd5 {[%clk 0:00:03]}  Rg4 {[%clk 0:00:07]} 82. Kd6 {[%clk 0:00:04]}  Kd4 {[%clk 0:00:08]} 83. Re7 {[%clk 0:00:04]}  Rg6+ {[%clk 0:00:08]} 84. Re6 {[%clk 0:00:05]}  Rg5 {[%clk 0:00:08]} 85. Bc6 {[%clk 0:00:05]}  Rg7 {[%clk 0:00:07]} 86. Rf6 {[%clk 0:00:03]}  Kd3 {[%clk 0:00:08]} 87. Rf4 {[%clk 0:00:03]}  Ke3 {[%clk 0:00:08]} 88. Rf5 {[%clk 0:00:04]}  Kd4 {[%clk 0:00:08]} 89. Rf6 {[%clk 0:00:03]}  Ke3 {[%clk 0:00:08]} 90. Ke6 {[%clk 0:00:03]}  Kd4 {[%clk 0:00:08]} 91. Bd5 {[%clk 0:00:03]}  Rg5 {[%clk 0:00:08]} 92. Rf5 {[%clk 0:00:03]}  Rg6+ {[%clk 0:00:08]} 93. Rf6 {[%clk 0:00:03]}  Rg5 {[%clk 0:00:07]} 94. Bc6 {[%clk 0:00:03]}  Re5+ {[%clk 0:00:07]} 95. Kd6 {[%clk 0:00:03]}  Rg5 {[%clk 0:00:08]} 96. Rf2 {[%clk 0:00:03]}  Ke3 {[%clk 0:00:08]} 97. Rf3+ {[%clk 0:00:02]}  Kd4 {[%clk 0:00:09]} 98. Rf6 {[%clk 0:00:02]}  Ke3 {[%clk 0:00:09]} 99. Re6+ {[%clk 0:00:03]}  Kd4 {[%clk 0:00:10]} 100. Re7 {[%clk 0:00:03]}  Rg6+ {[%clk 0:00:09]} 101. Re6 {[%clk 0:00:03]}  Rg5 {[%clk 0:00:10]} 102. Kc7 {[%clk 0:00:04]}  Kc5 {[%clk 0:00:10]} 103. Rf6 {[%clk 0:00:03]}  Kd4 {[%clk 0:00:09]} 104. Rf2 {[%clk 0:00:03]}  Ke3 {[%clk 0:00:10]} 105. Rb2 {[%clk 0:00:02]}  Rg6 {[%clk 0:00:09]} 106. Kb6 {[%clk 0:00:02]}  Kd4 {[%clk 0:00:10]} 107. Ra2 {[%clk 0:00:02]}  Kc3 {[%clk 0:00:09]} 108. Ra4 {[%clk 0:00:03]}  Kd3 {[%clk 0:00:09]} 109. g4 {[%clk 0:00:03]}  Ke3 {[%clk 0:00:09]} 110. Kc7 {[%clk 0:00:03]}  Rg7+ {[%clk 0:00:08]} 111. Kd8 {[%clk 0:00:02]}  Kf2 {[%clk 0:00:07]} 112. Bd7 {[%clk 0:00:02]}  Kg3 {[%clk 0:00:08]} 113. Kc7 {[%clk 0:00:02]}  Kh4 {[%clk 0:00:08]} 114. Ra3 {[%clk 0:00:02]}  Kg5 {[%clk 0:00:09]} 115. Ra5+ {[%clk 0:00:03]}  Kf4 {[%clk 0:00:08]} 116. Rf5+ {[%clk 0:00:03]}  Ke4 {[%clk 0:00:09]} 117. Rc5 {[%clk 0:00:03]}  Kf4 {[%clk 0:00:09]} 118. Rc6 {[%clk 0:00:04]}  Kg5 {[%clk 0:00:09]} 119. Rd6 {[%clk 0:00:03]}  Kf4 {[%clk 0:00:09]} 120. Kd8 {[%clk 0:00:03]}  Ke5 {[%clk 0:00:08]} 121. Re6+ {[%clk 0:00:03]}  Kf4 {[%clk 0:00:09]} 122. Re7 {[%clk 0:00:04]}  Rg8+ {[%clk 0:00:09]} 123. Re8 {[%clk 0:00:04]}  Rg7 {[%clk 0:00:09]} 124. Rf8+ {[%clk 0:00:04]}  Ke5 {[%clk 0:00:09]} 125. Ke8 {[%clk 0:00:04]}  Kd6 {[%clk 0:00:09]} 126. Rf6+ {[%clk 0:00:04]}  Ke5 {[%clk 0:00:10]} 127. Re6+ {[%clk 0:00:04]}  Kd5 {[%clk 0:00:10]} 128. Re7 {[%clk 0:00:04]}  Rg5 {[%clk 0:00:09]} 129. Kf7 {[%clk 0:00:04]}  Kd6 {[%clk 0:00:09]} 130. Bf5 {[%clk 0:00:04]}  Rxf5+ {[%clk 0:00:09]} 131. gxf5 {[%clk 0:00:03]} 1-0


[Site "https://www.chess.com"]

[Event "Titled Tuesday Blitz September 28 2021"]
[White "AleksanderHnydiuk"]
[Black "Navalgund, Niranjan"]
[BlackFideId "5030854"]
[WhiteElo "2585"]
[BlackElo "2290"]
[Result "1-0"]
[Round "06"]
[TimeControl "180+1"]
[Date "2021.09.28"]
[WhiteClock "0:00:05"]
[BlackClock "0:00:22"]

1. e4 {[%clk 0:03:00]}  e5 {[%clk 0:02:34]} 2. Nf3 {[%clk 0:03:00]}  Nc6 {[%clk 0:02:34]} 3. d4 {[%clk 0:03:01]}  exd4 {[%clk 0:02:34]} 4. Nxd4 {[%clk 0:03:02]}  Bc5 {[%clk 0:02:35]} 5. Nxc6 {[%clk 0:02:59]}  Qf6 {[%clk 0:02:33]} 6. Qf3 {[%clk 0:02:59]}  bxc6 {[%clk 0:02:33]} 7. Nc3 {[%clk 0:02:59]}  Rb8 {[%clk 0:02:29]} 8. Bc4 {[%clk 0:02:44]}  Bd4 {[%clk 0:02:22]} 9. Bd2 {[%clk 0:02:27]}  Rxb2 {[%clk 0:02:21]} 10. Bb3 {[%clk 0:02:25]}  c5 {[%clk 0:02:13]} 11. O-O-O {[%clk 0:02:19]}  Rxb3 {[%clk 0:02:05]} 12. cxb3 {[%clk 0:02:10]}  Qa6 {[%clk 0:02:01]} 13. Kb1 {[%clk 0:02:03]}  Ne7 {[%clk 0:02:00]} 14. Ne2 {[%clk 0:01:39]}  Nc6 {[%clk 0:01:55]} 15. Nf4 {[%clk 0:01:29]}  O-O {[%clk 0:01:54]} 16. Nd5 {[%clk 0:01:19]}  Ne5 {[%clk 0:01:41]} 17. Qg3 {[%clk 0:01:14]}  d6 {[%clk 0:01:33]} 18. Bc3 {[%clk 0:00:58]}  Bxc3 {[%clk 0:01:08]} 19. Qxc3 {[%clk 0:00:59]}  Qb7 {[%clk 0:00:55]} 20. Ka1 {[%clk 0:00:50]}  a5 {[%clk 0:00:55]} 21. Qxa5 {[%clk 0:00:42]}  Bg4 {[%clk 0:00:51]} 22. Qxc7 {[%clk 0:00:36]}  Qa6 {[%clk 0:00:43]} 23. Ne7+ {[%clk 0:00:29]}  Kh8 {[%clk 0:00:42]} 24. Qxd6 {[%clk 0:00:29]}  Qa5 {[%clk 0:00:32]} 25. Qxe5 {[%clk 0:00:26]}  Ra8 {[%clk 0:00:30]} 26. Qb2 {[%clk 0:00:21]}  Bxd1 {[%clk 0:00:30]} 27. Rxd1 {[%clk 0:00:22]}  h6 {[%clk 0:00:29]} 28. Nf5 {[%clk 0:00:21]}  f6 {[%clk 0:00:29]} 29. Qd2 {[%clk 0:00:17]}  Qa3 {[%clk 0:00:28]} 30. Qb2 {[%clk 0:00:16]}  Qa5 {[%clk 0:00:27]} 31. Nd6 {[%clk 0:00:12]}  Qb4 {[%clk 0:00:24]} 32. Nc4 {[%clk 0:00:11]}  Qb7 {[%clk 0:00:23]} 33. e5 {[%clk 0:00:11]}  fxe5 {[%clk 0:00:22]} 34. Qxe5 {[%clk 0:00:09]}  Qxb3 {[%clk 0:00:22]} 35. Rd8+ {[%clk 0:00:05]}  Kh7 {[%clk 0:00:22]} 36. Qf5+ {[%clk 0:00:04]}  g6 {[%clk 0:00:22]} 37. Qf7# {[%clk 0:00:05]} 1-0


[Site "https://www.chess.com"]

[Event "Titled Tuesday Blitz September 28 2021"]
[White "Babiy, Olga"]
[Black "Nozdrachev, Leonid"]
[WhiteFideId "14117258"]
[BlackFideId "24113433"]
[WhiteElo "2253"]
[BlackElo "2196"]
[Result "1/2-1/2"]
[Round "06"]
[TimeControl "180+1"]
[Date "2021.09.28"]
[WhiteClock "0:01:05"]
[BlackClock "0:01:12"]

1. d4 {[%clk 0:03:00]}  Nf6 {[%clk 0:02:58]} 2. Nf3 {[%clk 0:03:00]}  e6 {[%clk 0:02:58]} 3. Bf4 {[%clk 0:02:59]}  d5 {[%clk 0:02:56]} 4. e3 {[%clk 0:02:58]}  c5 {[%clk 0:02:57]} 5. Nbd2 {[%clk 0:02:56]}  Nc6 {[%clk 0:02:58]} 6. c3 {[%clk 0:02:40]}  Bd6 {[%clk 0:02:57]} 7. Bg3 {[%clk 0:02:30]}  O-O {[%clk 0:02:55]} 8. Bd3 {[%clk 0:02:31]}  b6 {[%clk 0:02:49]} 9. e4 {[%clk 0:02:30]}  dxe4 {[%clk 0:02:42]} 10. Nxe4 {[%clk 0:02:25]}  Nxe4 {[%clk 0:02:38]} 11. Bxe4 {[%clk 0:02:26]}  Bb7 {[%clk 0:02:36]} 12. dxc5 {[%clk 0:02:24]}  Bxc5 {[%clk 0:02:35]} 13. Qa4 {[%clk 0:02:20]}  Na5 {[%clk 0:02:09]} 14. Bxb7 {[%clk 0:01:56]}  Nxb7 {[%clk 0:02:10]} 15. Rd1 {[%clk 0:01:54]}  Qc8 {[%clk 0:02:00]} 16. O-O {[%clk 0:01:33]}  Rd8 {[%clk 0:01:46]} 17. Rxd8+ {[%clk 0:01:31]}  Qxd8 {[%clk 0:01:46]} 18. Rd1 {[%clk 0:01:32]}  Qe8 {[%clk 0:01:47]} 19. Qe4 {[%clk 0:01:31]}  Rd8 {[%clk 0:01:37]} 20. Rxd8 {[%clk 0:01:08]}  Qxd8 {[%clk 0:01:38]} 21. h4 {[%clk 0:01:06]}  Nd6 {[%clk 0:01:26]} 22. Qd3 {[%clk 0:01:06]}  Nb7 {[%clk 0:01:19]} 23. Qe4 {[%clk 0:01:06]}  Nd6 {[%clk 0:01:12]} 24. Qd3 {[%clk 0:01:06]}  Nb7 {[%clk 0:01:12]} 25. Qe4 {[%clk 0:01:05]} 1/2-1/2


[Site "https://www.chess.com"]

[Event "Titled Tuesday Blitz September 28 2021"]
[White "Corrales Jimenez, Fidel"]
[Black "Borsuk, Konstantin"]
[WhiteFideId "3506690"]
[BlackFideId "14113406"]
[WhiteElo "2555"]
[BlackElo "2414"]
[Result "0-1"]
[Round "06"]
[TimeControl "180+1"]
[Date "2021.09.28"]
[WhiteClock "0:00:06"]
[BlackClock "0:00:11"]

1. e4 {[%clk 0:02:58]}  e6 {[%clk 0:02:59]} 2. d4 {[%clk 0:02:58]}  d5 {[%clk 0:03:00]} 3. e5 {[%clk 0:02:59]}  c5 {[%clk 0:02:59]} 4. c3 {[%clk 0:02:59]}  Nc6 {[%clk 0:03:00]} 5. Nf3 {[%clk 0:02:59]}  Qb6 {[%clk 0:03:01]} 6. a3 {[%clk 0:02:59]}  c4 {[%clk 0:03:01]} 7. Be2 {[%clk 0:02:58]}  Na5 {[%clk 0:03:01]} 8. Nbd2 {[%clk 0:02:59]}  Bd7 {[%clk 0:03:01]} 9. O-O {[%clk 0:02:59]}  Ne7 {[%clk 0:03:01]} 10. Re1 {[%clk 0:02:55]}  h6 {[%clk 0:02:57]} 11. h4 {[%clk 0:02:54]}  O-O-O {[%clk 0:02:56]} 12. h5 {[%clk 0:02:55]}  Kb8 {[%clk 0:02:56]} 13. Rb1 {[%clk 0:02:54]}  f5 {[%clk 0:02:45]} 14. Nf1 {[%clk 0:02:23]}  Nb3 {[%clk 0:02:42]} 15. N3h2 {[%clk 0:02:12]}  g5 {[%clk 0:02:37]} 16. hxg6 {[%clk 0:02:11]}  Nxg6 {[%clk 0:02:37]} 17. Bh5 {[%clk 0:01:53]}  Rg8 {[%clk 0:02:35]} 18. Be3 {[%clk 0:01:30]}  f4 {[%clk 0:02:31]} 19. Bd2 {[%clk 0:01:21]}  Nxd2 {[%clk 0:02:21]} 20. Nxd2 {[%clk 0:01:20]}  Nh4 {[%clk 0:02:19]} 21. Bg4 {[%clk 0:01:13]}  h5 {[%clk 0:02:11]} 22. Bh3 {[%clk 0:01:12]}  Be8 {[%clk 0:02:00]} 23. b3 {[%clk 0:00:51]}  Bg6 {[%clk 0:01:57]} 24. Rb2 {[%clk 0:00:51]}  Be7 {[%clk 0:01:23]} 25. b4 {[%clk 0:00:45]}  Rg7 {[%clk 0:01:10]} 26. a4 {[%clk 0:00:44]}  Rdg8 {[%clk 0:01:10]} 27. Nhf3 {[%clk 0:00:44]}  Nxg2 {[%clk 0:01:06]} 28. Kxg2 {[%clk 0:00:35]}  Bc2+ {[%clk 0:01:06]} 29. Kh2 {[%clk 0:00:36]}  Bxd1 {[%clk 0:01:06]} 30. Rxd1 {[%clk 0:00:37]}  Rg6 {[%clk 0:00:58]} 31. Rbb1 {[%clk 0:00:18]}  Qd8 {[%clk 0:00:56]} 32. Rg1 {[%clk 0:00:07]}  Qe8 {[%clk 0:00:52]} 33. Rxg6 {[%clk 0:00:06]}  Rxg6 {[%clk 0:00:52]} 34. Ng1 {[%clk 0:00:05]}  Qxa4 {[%clk 0:00:51]} 35. Ndf3 {[%clk 0:00:05]}  Qc2 {[%clk 0:00:50]} 36. Rf1 {[%clk 0:00:06]}  Qxc3 {[%clk 0:00:50]} 37. b5 {[%clk 0:00:06]}  Qb2 {[%clk 0:00:49]} 38. Re1 {[%clk 0:00:06]}  Qxf2+ {[%clk 0:00:48]} 39. Kh1 {[%clk 0:00:06]}  c3 {[%clk 0:00:47]} 40. Re2 {[%clk 0:00:06]}  Qg3 {[%clk 0:00:37]} 41. Rg2 {[%clk 0:00:07]}  c2 {[%clk 0:00:30]} 42. Rxc2 {[%clk 0:00:07]}  a5 {[%clk 0:00:20]} 43. Rg2 {[%clk 0:00:07]}  a4 {[%clk 0:00:20]} 44. Rxg3 {[%clk 0:00:07]}  fxg3 {[%clk 0:00:20]} 45. Bxe6 {[%clk 0:00:08]}  Rxe6 {[%clk 0:00:20]} 46. Ne2 {[%clk 0:00:07]}  a3 {[%clk 0:00:20]} 47. Nc3 {[%clk 0:00:07]}  Rb6 {[%clk 0:00:18]} 48. Kg2 {[%clk 0:00:06]}  Rxb5 {[%clk 0:00:16]} 49. Nxb5 {[%clk 0:00:06]}  a2 {[%clk 0:00:16]} 50. Nc3 {[%clk 0:00:06]}  a1=Q {[%clk 0:00:16]} 51. Ne2 {[%clk 0:00:06]}  h4 {[%clk 0:00:14]} 52. Nfg1 {[%clk 0:00:07]}  b5 {[%clk 0:00:13]} 53. Kh3 {[%clk 0:00:08]}  b4 {[%clk 0:00:13]} 54. Nf3 {[%clk 0:00:08]}  b3 {[%clk 0:00:13]} 55. Nf4 {[%clk 0:00:07]}  Qf1+ {[%clk 0:00:13]} 56. Kg4 {[%clk 0:00:07]}  g2 {[%clk 0:00:13]} 57. Nh3 {[%clk 0:00:06]}  b2 {[%clk 0:00:12]} 58. Nh2 {[%clk 0:00:06]}  b1=Q {[%clk 0:00:11]} 59. Nxf1 {[%clk 0:00:06]}  gxf1=Q {[%clk 0:00:11]} 60. Kh5 {[%clk 0:00:07]}  Qbf5+ {[%clk 0:00:11]} 61. Kh6 {[%clk 0:00:06]}  Q5xh3 {[%clk 0:00:11]} 0-1


[Site "https://www.chess.com"]

[Event "Titled Tuesday Blitz September 28 2021"]
[White "Costachi, Mihnea"]
[Black "Urazayev, Arystanbek"]
[WhiteFideId "1217518"]
[BlackFideId "13709810"]
[WhiteElo "2482"]
[BlackElo "2321"]
[Result "1-0"]
[Round "06"]
[TimeControl "180+1"]
[Date "2021.09.28"]
[WhiteClock "0:00:38"]
[BlackClock "0:00:13"]

1. d4 {[%clk 0:03:00]}  Nf6 {[%clk 0:02:59]} 2. c4 {[%clk 0:03:00]}  g6 {[%clk 0:02:59]} 3. Nc3 {[%clk 0:03:00]}  Bg7 {[%clk 0:03:00]} 4. e4 {[%clk 0:03:01]}  d6 {[%clk 0:03:00]} 5. Be2 {[%clk 0:03:01]}  O-O {[%clk 0:02:58]} 6. Bg5 {[%clk 0:03:01]}  a6 {[%clk 0:02:52]} 7. Nf3 {[%clk 0:02:56]}  Nbd7 {[%clk 0:02:50]} 8. O-O {[%clk 0:02:54]}  h6 {[%clk 0:02:47]} 9. Bh4 {[%clk 0:02:46]}  c5 {[%clk 0:02:42]} 10. d5 {[%clk 0:02:46]}  b5 {[%clk 0:02:41]} 11. cxb5 {[%clk 0:02:46]}  axb5 {[%clk 0:02:41]} 12. Bxb5 {[%clk 0:02:46]}  Qb6 {[%clk 0:02:39]} 13. Re1 {[%clk 0:02:43]}  Ba6 {[%clk 0:02:28]} 14. a4 {[%clk 0:02:33]}  Bxb5 {[%clk 0:02:26]} 15. axb5 {[%clk 0:02:31]}  g5 {[%clk 0:02:18]} 16. Bg3 {[%clk 0:02:31]}  Nh5 {[%clk 0:02:17]} 17. Qb3 {[%clk 0:02:19]}  Nxg3 {[%clk 0:02:16]} 18. hxg3 {[%clk 0:02:19]}  Ra5 {[%clk 0:02:06]} 19. Rxa5 {[%clk 0:02:03]}  Qxa5 {[%clk 0:02:06]} 20. Nd2 {[%clk 0:02:04]}  Rb8 {[%clk 0:01:38]} 21. Nc4 {[%clk 0:01:48]}  Qb4 {[%clk 0:01:38]} 22. Qxb4 {[%clk 0:01:49]}  cxb4 {[%clk 0:01:39]} 23. Na4 {[%clk 0:01:49]}  Rxb5 {[%clk 0:01:39]} 24. b3 {[%clk 0:01:50]}  Nc5 {[%clk 0:01:28]} 25. Nxc5 {[%clk 0:01:49]}  Rxc5 {[%clk 0:01:28]} 26. Re2 {[%clk 0:01:46]}  Bd4 {[%clk 0:01:15]} 27. Ra2 {[%clk 0:01:44]}  f5 {[%clk 0:01:14]} 28. Re2 {[%clk 0:01:22]}  fxe4 {[%clk 0:01:08]} 29. Rxe4 {[%clk 0:01:23]}  Rxd5 {[%clk 0:01:08]} 30. Rxe7 {[%clk 0:01:23]}  Bc5 {[%clk 0:01:08]} 31. Ne3 {[%clk 0:01:17]}  Rd3 {[%clk 0:01:06]} 32. Ng4 {[%clk 0:01:06]}  Rxb3 {[%clk 0:00:50]} 33. Rd7 {[%clk 0:01:06]}  Kf8 {[%clk 0:00:50]} 34. Nf6 {[%clk 0:01:01]}  Bd4 {[%clk 0:00:44]} 35. Rxd6 {[%clk 0:01:01]}  Rb1+ {[%clk 0:00:24]} 36. Kh2 {[%clk 0:01:01]}  Be5 {[%clk 0:00:20]} 37. Re6 {[%clk 0:00:55]}  Bc3 {[%clk 0:00:17]} 38. Nd5 {[%clk 0:00:51]}  Bd4 {[%clk 0:00:16]} 39. Re4 {[%clk 0:00:43]}  Bxf2 {[%clk 0:00:13]} 40. Nxb4 {[%clk 0:00:43]}  h5 {[%clk 0:00:13]} 41. Nd3 {[%clk 0:00:38]} 1-0


[Site "https://www.chess.com"]

[Event "Titled Tuesday Blitz September 28 2021"]
[White "Di Nicolantonio, Lucas"]
[Black "Leitao, Rafael"]
[WhiteFideId "680460"]
[BlackFideId "2101246"]
[WhiteElo "2381"]
[BlackElo "2609"]
[Result "1-0"]
[Round "06"]
[TimeControl "180+1"]
[Date "2021.09.28"]
[WhiteClock "0:00:19"]
[BlackClock "0:00:07"]

1. Nf3 {[%clk 0:03:00]}  Nf6 {[%clk 0:02:58]} 2. c4 {[%clk 0:03:00]}  e6 {[%clk 0:02:58]} 3. Nc3 {[%clk 0:03:00]}  d5 {[%clk 0:02:58]} 4. e3 {[%clk 0:03:00]}  a6 {[%clk 0:02:54]} 5. b3 {[%clk 0:02:58]}  c5 {[%clk 0:02:54]} 6. Bb2 {[%clk 0:02:54]}  Nc6 {[%clk 0:02:54]} 7. cxd5 {[%clk 0:02:52]}  exd5 {[%clk 0:02:55]} 8. d4 {[%clk 0:02:52]}  cxd4 {[%clk 0:02:47]} 9. Nxd4 {[%clk 0:02:53]}  Bc5 {[%clk 0:02:45]} 10. Nxc6 {[%clk 0:02:47]}  bxc6 {[%clk 0:02:44]} 11. Bd3 {[%clk 0:02:48]}  O-O {[%clk 0:02:43]} 12. O-O {[%clk 0:02:48]}  Bd6 {[%clk 0:02:37]} 13. Rc1 {[%clk 0:02:42]}  Qe7 {[%clk 0:01:42]} 14. Ne2 {[%clk 0:02:17]}  Ng4 {[%clk 0:01:28]} 15. h3 {[%clk 0:02:03]}  Ne5 {[%clk 0:01:12]} 16. Nf4 {[%clk 0:01:41]}  Qg5 {[%clk 0:01:06]} 17. Bxe5 {[%clk 0:01:35]}  Bxe5 {[%clk 0:01:05]} 18. Rxc6 {[%clk 0:01:36]}  d4 {[%clk 0:01:03]} 19. Qh5 {[%clk 0:01:06]}  Qxh5 {[%clk 0:01:03]} 20. Nxh5 {[%clk 0:01:07]}  dxe3 {[%clk 0:01:03]} 21. fxe3 {[%clk 0:01:04]}  Bb7 {[%clk 0:01:03]} 22. Rc2 {[%clk 0:00:57]}  Rfd8 {[%clk 0:00:59]} 23. Bc4 {[%clk 0:00:57]}  Rd7 {[%clk 0:00:55]} 24. Rcf2 {[%clk 0:00:55]}  Rf8 {[%clk 0:00:55]} 25. Nf4 {[%clk 0:00:51]}  g6 {[%clk 0:00:56]} 26. Ne6 {[%clk 0:00:47]}  Rc8 {[%clk 0:00:41]} 27. Ng5 {[%clk 0:00:44]}  Rxc4 {[%clk 0:00:37]} 28. bxc4 {[%clk 0:00:44]}  f6 {[%clk 0:00:34]} 29. Nf3 {[%clk 0:00:37]}  Bg3 {[%clk 0:00:34]} 30. Rb2 {[%clk 0:00:34]}  Be4 {[%clk 0:00:29]} 31. Nd4 {[%clk 0:00:32]}  Kf7 {[%clk 0:00:27]} 32. Rb6 {[%clk 0:00:30]}  Be5 {[%clk 0:00:27]} 33. c5 {[%clk 0:00:28]}  h5 {[%clk 0:00:20]} 34. Rfb1 {[%clk 0:00:17]}  Rc7 {[%clk 0:00:16]} 35. Rc1 {[%clk 0:00:16]}  Ke7 {[%clk 0:00:15]} 36. c6 {[%clk 0:00:16]}  Kd6 {[%clk 0:00:15]} 37. Rd1 {[%clk 0:00:15]}  Kc5 {[%clk 0:00:15]} 38. Rxa6 {[%clk 0:00:15]}  Bd5 {[%clk 0:00:13]} 39. Ra5+ {[%clk 0:00:15]}  Kc4 {[%clk 0:00:11]} 40. Rxd5 {[%clk 0:00:15]}  Kxd5 {[%clk 0:00:11]} 41. Nb5+ {[%clk 0:00:15]}  Kxc6 {[%clk 0:00:11]} 42. Nxc7 {[%clk 0:00:16]}  Kxc7 {[%clk 0:00:12]} 43. a4 {[%clk 0:00:15]}  Kb6 {[%clk 0:00:12]} 44. Rd5 {[%clk 0:00:15]}  g5 {[%clk 0:00:10]} 45. Rb5+ {[%clk 0:00:16]}  Kc6 {[%clk 0:00:10]} 46. g4 {[%clk 0:00:17]}  hxg4 {[%clk 0:00:09]} 47. hxg4 {[%clk 0:00:18]}  Bc7 {[%clk 0:00:07]} 48. Kg2 {[%clk 0:00:18]}  Kd6 {[%clk 0:00:07]} 49. Kf3 {[%clk 0:00:19]} 1-0


[Site "https://www.chess.com"]